bitfinex/quotes_ETHUSD_20251215
["timestamp","ask_amount","ask_price","bid_price","bid_amount"]
[1765811469372,1.67842844,3042.2,3039.6,0.58047529]
[1765811469572,0.4932,3042.1,3040.3,9.86744727]
[1765811469776,0.74984284,3042.0,3040.4,0.58047529]
[1765811470287,1.0752,3041.9,3040.4,0.58047529]
[1765811470677,0.4932,3041.9,3040.4,0.58047529]
[1765811470999,0.582,3041.8,3040.4,0.58047529]
[1765811471186,3.78112002,3042.4,3040.4,0.58047529]
[1765811471390,0.001,3042.4,3040.7,6.85857242]
[1765811471560,0.001,3042.4,3042.1,6.57440582]
[1765811471761,0.001,3042.4,3042.2,0.58047529]
[1765811472062,0.001,3042.4,3042.3,0.03286986]
[1765811472297,0.001,3042.8,3042.7,0.58047529]
[1765811472480,0.001,3042.8,3042.7,19.25074371]
[1765811472679,0.4942,3044.9,3042.8,20.310279]
[1765811472897,0.4942,3044.9,3043.1,0.58047529]
[1765811473192,0.4932,3044.4,3042.9,0.582]
[1765811473499,0.001,3044.9,3043.5,0.58047529]
[1765811473668,0.001,3044.9,3044.1,0.58047529]
[1765811473996,0.001,3044.9,3044.2,0.581]
[1765811474507,0.001,3044.9,3044.7,0.58047529]
[1765811474798,0.581,3046.4,3044.8,0.581]
[1765811475001,0.581,3046.4,3045.2,6.85857242]
[1765811475166,0.581,3046.4,3044.7,0.58047529]
[1765811475167,0.1865,3047.0,3044.0,0.43869803]
[1765811475364,7.05997874,3046.1,3044.2,0.58047529]
[1765811475695,0.70599787,3046.0,3044.9,6.5683602]
[1765811475896,3.2829949,3046.0,3044.9,6.5683602]
[1765811476192,0.001,3046.1,3044.9,9.8525403]
[1765811476398,0.001,3046.1,3044.9,6.5683602]
[1765811476562,0.001,3046.1,3044.9,9.8525403]
[1765811476764,0.405504,3046.0,3044.9,6.5683602]
[1765811476996,0.405504,3045.8,3044.9,3.2841801]
[1765811477376,0.405504,3045.6,3043.2,6.85857242]
[1765811477703,0.405504,3045.4,3044.1,3.28503781]
[1765811477912,0.36894308,3045.9,3043.4,3.34629]
[1765811477913,0.405504,3045.2,3043.4,3.34629]
[1765811478065,0.405504,3045.2,3043.3,13.14362696]
[1765811478273,0.405504,3045.0,3043.4,0.58047529]
[1765811478488,0.405504,3045.0,3043.3,9.85772022]
[1765811478694,0.405504,3044.8,3043.4,0.58047529]
[1765811478871,0.405504,3044.8,3043.3,6.57181348]
[1765811479066,0.898704,3044.8,3043.3,6.57181348]
[1765811479329,0.898704,3044.8,3043.3,3.28590674]
[1765811479477,0.405504,3044.6,3043.3,3.28590674]
[1765811479676,0.01964926,3044.4,3042.1,0.581]
[1765811479875,0.405504,3044.2,3042.2,9.86128458]
[1765811480098,0.405504,3044.0,3042.2,9.86128458]
[1765811480510,0.405504,3043.8,3042.2,13.14837944]
[1765811480682,0.405504,3043.8,3042.3,0.58047529]
[1765811480900,0.405504,3043.6,3042.3,2.08585649]
[1765811481111,0.01964926,3044.4,3042.3,1.5053812]
[1765811481112,0.581,3044.1,3042.3,1.5053812]
[1765811481314,0.405504,3043.4,3042.2,6.57418972]
[1765811481607,0.405504,3043.4,3042.1,3.28716353]
[1765811481782,0.1865,3043.5,3041.4,3.28795949]
[1765811481783,0.4932,3042.9,3041.4,3.28795949]
[1765811482112,0.58,3042.8,3041.4,3.28795949]
[1765811482297,0.4932,3042.9,3041.4,3.28795949]
[1765811482476,0.4932,3042.9,3041.5,0.58047529]
[1765811482477,0.58,3042.8,3041.5,0.58047529]
[1765811482677,0.4932,3042.9,3041.5,0.58047529]
[1765811482876,0.58,3042.8,3041.5,0.58047529]
[1765811483577,0.4932,3042.7,3041.5,0.58047529]
[1765811483777,0.4932,3042.7,3040.7,0.58]
[1765811483778,0.98597929,3042.5,3040.8,6.57721652]
[1765811484011,0.405504,3042.3,3040.8,9.86582478]
[1765811484411,0.405504,3042.3,3040.8,13.15443304]
[1765811484575,0.405504,3042.1,3040.9,0.58047529]
[1765811484782,0.58,3042.1,3040.9,0.58047529]
[1765811484976,0.405504,3042.0,3040.9,0.58047529]
[1765811485409,0.985504,3042.0,3040.9,1.6831053]
[1765811485712,0.01964926,3042.6,3040.9,1.6831053]
[1765811485880,3.28590058,3043.4,3041.1,0.58047529]
[1765811486083,0.58,3042.9,3041.4,6.85857242]
[1765811486307,0.51284926,3043.3,3041.5,0.58047529]
[1765811486508,0.51284926,3043.3,3041.6,0.74390477]
[1765811486509,0.58,3043.2,3041.6,0.74390477]
[1765811486718,0.01964926,3043.1,3041.7,0.58]
[1765811487010,0.001,3042.8,3041.7,0.58]
[1765811487437,0.001,3042.8,3041.3,0.58047529]
[1765811487613,0.581,3042.8,3041.4,0.87489903]
[1765811487816,0.001,3042.8,3041.8,24.209352]
[1765811488141,0.001,3042.8,3042.7,6.85857242]
[1765811488310,0.001,3044.1,3042.8,0.58047529]
[1765811489128,0.001,3044.1,3043.3,6.85857242]
[1765811489324,0.001,3044.1,3042.6,6.85857242]
[1765811489640,0.001,3044.1,3042.7,0.58047529]
[1765811489825,0.001,3044.1,3043.0,9.85869207]
[1765811490009,0.001,3044.1,3043.0,13.14492276]
[1765811490204,0.001,3044.1,3043.1,0.03286122]
[1765811490405,0.001,3044.1,3043.2,0.58]
[1765811490710,0.001,3044.1,3043.0,6.57246138]
[1765811490711,0.42515326,3043.9,3043.0,6.57246138]
[1765811491006,0.01964926,3043.7,3043.0,6.57246138]
[1765811491838,0.01964926,3043.7,3042.4,0.58047529]
[1765811492158,0.405504,3043.8,3042.4,0.58047529]
[1765811492444,0.001,3044.1,3042.4,2.06935881]
[1765811492754,0.405504,3043.9,3042.3,13.14788464]
[1765811492914,0.405504,3043.9,3042.4,0.58047529]
[1765811493482,0.405504,3043.7,3042.3,6.57391102]
[1765811493757,0.405504,3043.5,3042.3,6.57391102]
[1765811493910,0.001,3044.1,3042.6,0.58047529]
[1765811494111,0.001,3044.1,3042.9,7.741012]
[1765811494349,0.001,3044.1,3043.2,0.58047529]
[1765811494510,0.001,3044.1,3043.5,0.58047529]
[1765811494711,0.001,3044.1,3043.8,7.440649]
[1765811495017,0.001,3044.1,3043.9,1.38111243]
[1765811495318,0.001,3044.1,3043.9,0.579]
[1765811495911,0.001,3044.1,3044.0,3.8656264]
[1765811496172,0.001,3044.1,3044.0,10.72419882]
[1765811496449,0.4874,3046.1,3044.3,0.58047529]
[1765811496666,0.4874,3046.1,3044.1,0.58047529]
[1765811496667,0.001,3045.7,3044.4,0.579]
[1765811497472,0.001,3045.7,3044.7,0.58047529]
[1765811497610,0.001,3045.7,3044.8,23.41298677]
[1765811497808,0.001,3045.7,3045.1,0.58047529]
[1765811498014,0.001,3045.7,3045.3,0.58047529]
[1765811498208,0.001,3045.7,3045.4,0.579]
[1765811498445,0.001,3046.0,3045.4,0.579]
[1765811498951,0.001,3046.0,3045.4,0.80180477]
[1765811499153,0.001,3046.0,3045.2,0.579]
[1765811499710,0.001,3046.0,3045.4,0.58047529]
[1765811499910,0.001,3046.0,3045.5,9.85059924]
[1765811501111,0.001,3046.0,3045.6,1.15947529]
[1765811501653,0.001,3046.1,3045.6,1.15947529]
[1765811501821,0.001,3046.1,3045.7,1.42936076]
[1765811502022,0.001,3046.1,3045.8,6.56641932]
[1765811503055,0.001,3046.1,3045.8,3.28320966]
[1765811503259,0.001,3046.1,3045.8,6.56641932]
[1765811503916,0.001,3046.1,3045.9,0.03283101]
[1765811504126,0.001,3046.1,3045.5,0.58047529]
[1765811504435,0.4864,3047.6,3045.8,0.58047529]
[1765811504638,0.4864,3047.6,3045.6,2.52997918]
[1765811505058,0.0002,3047.3,3045.8,0.58047529]
[1765811505265,0.0002,3047.3,3046.1,6.85857242]
[1765811505568,0.0002,3047.3,3046.9,0.58047529]
[1765811505803,0.0002,3047.3,3047.0,0.578]
[1765811505924,0.0002,3047.3,3047.1,3.28180893]
[1765811507235,0.0002,3047.3,3047.0,3.28183272]
[1765811507573,0.0002,3047.3,3046.9,3.28198717]
[1765811507744,0.0002,3047.3,3047.0,3.28186918]
[1765811507945,0.0002,3047.3,3046.4,0.58047529]
[1765811508153,0.0002,3047.3,3046.3,3.28259606]
[1765811508154,0.01964926,3046.8,3045.0,3.28397468]
[1765811508332,0.01964926,3046.6,3046.1,3.28288631]
[1765811508532,0.01964926,3046.6,3045.1,0.578]
[1765811508734,0.1886,3045.2,3043.9,9.85577712]
[1765811508959,0.405504,3045.1,3043.9,3.28525904]
[1765811509242,0.578,3045.0,3043.9,6.57051808]
[1765811509581,0.405504,3044.9,3043.9,6.57051808]
[1765811509749,0.891904,3044.9,3043.9,3.28525904]
[1765811510003,3.77059848,3044.9,3043.8,0.002]
[1765811510296,0.891904,3044.8,3043.8,0.002]
[1765811510730,0.405504,3044.6,3043.8,0.002]
[1765811511088,0.405504,3044.4,3043.8,0.002]
[1765811511325,0.01964926,3044.0,3043.8,0.002]
[1765811512800,0.405504,3043.9,3043.8,0.002]
[1765811513196,0.42515326,3044.1,3043.8,0.002]
[1765811513630,0.01964926,3044.1,3043.8,0.002]
[1765811514205,0.01964926,3044.2,3043.8,0.002]
[1765811514653,0.01964926,3044.4,3043.8,0.002]
[1765811514797,0.01964926,3044.0,3043.8,0.002]
[1765811515502,0.42515326,3044.2,3043.8,0.002]
[1765811515503,0.01964926,3044.2,3043.8,0.002]
[1765811515699,0.01964926,3044.1,3043.8,0.002]
[1765811517032,0.98597929,3043.7,3043.0,0.002]
[1765811517196,0.405504,3043.0,3041.8,3.28752601]
[1765811517403,0.405504,3042.8,3041.8,3.28752601]
[1765811517600,0.405504,3042.8,3041.7,0.002]
[1765811517838,0.405504,3042.6,3041.8,3.28751717]
[1765811518048,0.405504,3042.6,3041.7,0.002]
[1765811518049,3.28677074,3042.5,3041.7,0.002]
[1765811518202,0.01964926,3042.0,3041.7,0.002]
[1765811518750,1.171104,3041.9,3041.7,0.002]
[1765811518951,0.982504,3041.9,3041.7,0.002]
[1765811519113,0.91155326,3041.8,3041.7,0.002]
[1765811519315,0.405504,3041.7,3041.3,0.002]
[1765811519555,0.891904,3041.7,3041.3,0.002]
[1765811519963,0.405504,3041.5,3041.3,0.002]
[1765811520118,0.405504,3041.4,3041.3,0.002]
[1765811520328,0.405504,3041.4,3040.5,0.002]
[1765811520329,0.405504,3041.3,3040.5,0.002]
[1765811520638,0.594104,3040.6,3040.5,0.002]
[1765811521043,0.405504,3040.5,3039.1,3.29044082]
[1765811521246,0.405504,3040.1,3038.9,0.002]
[1765811521447,0.405504,3039.9,3038.9,0.002]
[1765811521628,0.405504,3039.7,3038.9,0.002]
[1765811521839,0.405504,3039.5,3038.9,0.002]
[1765811522421,0.577,3039.5,3038.9,0.002]
[1765811522625,0.405504,3039.4,3038.9,0.002]
[1765811522860,0.577,3039.4,3038.9,0.002]
[1765811523022,0.405504,3039.4,3038.9,0.002]
[1765811523223,0.577,3039.5,3038.9,0.002]
[1765811523734,0.405504,3039.5,3038.9,0.002]
[1765811524073,0.982504,3039.4,3038.9,0.002]
[1765811524250,1.475204,3039.4,3038.9,0.002]
[1765811524571,0.405504,3039.4,3038.9,0.002]
[1765811524721,0.898204,3039.4,3038.9,0.002]
[1765811524942,1.475204,3039.4,3038.9,0.002]
[1765811525271,0.01964926,3040.3,3038.9,0.002]
[1765811525429,0.577,3040.2,3038.9,0.002]
[1765811525627,0.577,3040.2,3038.4,6.58241178]
[1765811525628,0.01964926,3040.1,3038.4,6.58241178]
[1765811525854,0.42515326,3040.1,3038.4,3.29120589]
[1765811526067,0.42515326,3040.1,3038.0,0.002]
[1765811526068,6.57981312,3039.6,3038.0,0.002]
[1765811526228,0.405504,3039.4,3038.0,0.002]
[1765811526628,0.405504,3039.2,3038.0,0.002]
[1765811526849,0.577,3039.1,3038.0,0.002]
[1765811527070,0.4927,3039.8,3038.0,0.002]
[1765811527359,0.577,3039.7,3038.0,6.87810061]
[1765811527689,0.51234926,3040.7,3038.9,5.71901836]
[1765811527974,1.0697,3040.5,3039.0,0.57190184]
[1765811528159,0.01964926,3040.3,3038.8,6.58154534]
[1765811528344,0.01884926,3040.1,3038.8,3.29077267]
[1765811528669,0.405504,3039.9,3038.8,3.29077267]
[1765811528971,0.405504,3039.7,3038.8,3.29077267]
[1765811529173,0.405504,3039.7,3038.7,3.29086985]
[1765811529174,0.01964926,3039.5,3038.7,3.29086985]
[1765811529376,0.42515326,3039.5,3038.7,3.29086805]
[1765811529581,0.405504,3039.3,3038.7,3.29086805]
[1765811529743,0.405504,3039.3,3038.7,6.58174901]
[1765811530077,0.577,3039.3,3038.7,7.23992391]
[1765811530245,0.577,3039.3,3038.7,10.53080487]
[1765811530447,3.2893365,3040.2,3038.7,10.53080487]
[1765811530645,0.577,3040.0,3038.7,10.53080487]
[1765811530848,0.1886,3040.6,3038.7,10.53080487]
[1765811530849,3.47742661,3040.6,3038.8,6.34240137]
[1765811531159,0.01964926,3040.9,3038.9,2.34549682]
[1765811531160,1.0,3039.4,3038.9,2.34549682]
[1765811531364,1.0,3039.4,3038.9,2.35549682]
[1765811531560,1.0,3039.4,3039.3,5.71901836]
[1765811531761,0.4927,3041.7,3039.8,5.71901836]
[1765811531940,0.4927,3041.7,3040.0,14.221853]
[1765811531941,0.577,3041.6,3040.0,14.221853]
[1765811532273,0.577,3041.6,3040.2,9.86777184]
[1765811532274,3.2877808,3041.6,3040.2,9.86777184]
[1765811532446,0.4927,3041.7,3040.2,13.15702912]
[1765811532648,0.1886,3042.1,3040.3,6.30949365]
[1765811532840,1.08934926,3042.0,3040.3,0.58047529]
[1765811533041,0.01964926,3041.8,3040.2,6.57851456]
[1765811533340,0.5,3041.4,3040.3,0.01]
[1765811533541,0.5,3041.4,3039.0,0.01]
[1765811533763,0.405504,3041.2,3039.1,3.29038175]
[1765811533964,0.4927,3041.3,3039.4,3.29002108]
[1765811533965,0.98597929,3040.8,3039.4,3.29002108]
[1765811534150,0.5,3041.4,3038.8,3.29273176]
[1765811534151,0.405504,3040.1,3038.8,0.002]
[1765811534342,0.01964926,3040.5,3038.8,0.58247529]
[1765811534547,0.1897,3040.7,3038.9,0.01]
[1765811534748,0.576,3041.1,3039.5,8.637566]
[1765811534946,0.576,3041.1,3039.6,0.93180413]
[1765811535148,0.898204,3041.0,3039.5,0.576]
[1765811535348,0.898204,3041.0,3039.1,0.576]
[1765811535578,0.405504,3040.8,3039.1,0.576]
[1765811535879,0.01964926,3040.0,3038.8,0.002]
[1765811536186,0.405504,3039.9,3038.9,9.87199314]
[1765811536483,0.405504,3040.0,3039.0,1.04544684]
[1765811536655,0.405504,3040.0,3038.9,9.87199314]
[1765811536856,0.405504,3040.5,3038.9,9.87199314]
[1765811537051,0.405504,3040.2,3038.9,9.87199314]
[1765811537260,0.42515326,3040.2,3038.9,9.87199314]
[1765811537454,0.91785326,3040.2,3038.9,9.87199314]
[1765811537683,0.91785326,3040.2,3038.9,10.97503998]
[1765811537880,0.405504,3040.0,3038.9,14.26570436]
[1765811538184,0.42515326,3040.0,3038.9,6.58132876]
[1765811538351,0.42515326,3039.8,3038.9,6.58132876]
[1765811538554,0.42515326,3039.8,3038.9,3.29066438]
[1765811538753,0.981504,3039.7,3038.9,6.58132876]
[1765811539188,0.981504,3039.7,3038.8,3.29273827]
[1765811539491,0.01964926,3039.4,3038.8,3.29273827]
[1765811539793,0.405504,3039.2,3038.8,3.29273827]
[1765811540082,0.01964926,3039.4,3038.8,6.58351094]
[1765811540390,0.405504,3039.2,3038.8,0.002]
[1765811540595,0.01964926,3039.6,3038.8,0.002]
[1765811540794,0.405504,3039.6,3038.8,0.002]
[1765811541081,0.001,3039.9,3038.9,0.01]
[1765811541255,0.001,3039.9,3039.0,7.09362184]
[1765811541455,0.001,3039.9,3039.2,0.58047529]
[1765811541758,0.001,3039.9,3039.3,0.03290231]
[1765811541953,0.001,3039.9,3039.4,0.586]
[1765811542261,0.001,3039.9,3039.6,0.58047529]
[1765811542469,0.001,3039.9,3039.8,0.58047529]
[1765811542699,0.001,3041.2,3040.0,0.58047529]
[1765811542904,0.001,3041.2,3040.1,0.586]
[1765811543116,0.001,3041.2,3040.3,6.29949365]
[1765811543257,3.49441512,3043.1,3040.3,6.29949365]
[1765811543258,0.1897,3043.9,3041.2,30.0]
[1765811543457,0.4927,3044.2,3042.1,14.601387]
[1765811543703,0.001,3044.4,3042.6,0.58047529]
[1765811543903,0.001,3044.4,3042.6,0.60886662]
[1765811543904,0.4927,3044.3,3042.6,0.60886662]
[1765811544220,9.412676,3044.2,3042.0,0.585]
[1765811544519,7.06278638,3044.1,3042.1,9.87060873]
[1765811544817,7.06278638,3044.1,3042.1,13.14881164]
[1765811545024,8.067311,3043.9,3042.1,3.28720291]
[1765811545227,0.405504,3043.7,3042.1,3.28720291]
[1765811545525,0.98597929,3043.6,3042.1,3.28720291]
[1765811545810,0.98597929,3043.4,3041.7,3.28753866]
[1765811546019,0.98597929,3043.2,3042.0,3.28730294]
[1765811546180,0.405504,3043.0,3042.0,3.28730294]
[1765811546381,0.405504,3043.0,3041.7,3.28757447]
[1765811546576,3.69173957,3043.0,3041.6,6.57548658]
[1765811546812,0.405504,3043.1,3041.6,9.86322987]
[1765811547015,0.405504,3043.1,3041.6,6.57548658]
[1765811547016,0.405504,3042.9,3041.6,6.57548658]
[1765811547315,0.405504,3042.9,3041.6,9.86322987]
[1765811547974,0.405504,3042.9,3041.6,9.87222987]
[1765811548311,0.405504,3042.7,3041.4,3.28792233]
[1765811548612,0.980504,3042.7,3041.4,0.58047529]
[1765811548979,0.405504,3042.6,3041.4,0.58947529]
[1765811549174,0.405504,3042.6,3041.4,0.58047529]
[1765811549374,0.405504,3042.6,3041.4,0.58947529]
[1765811550115,0.4927,3043.9,3041.9,30.0]
[1765811550305,0.575,3044.0,3042.2,13.72885473]
[1765811550501,0.575,3044.0,3042.4,0.58047529]
[1765811550682,3.86015426,3044.0,3042.5,0.584]
[1765811550883,0.575,3044.0,3042.6,0.009]
[1765811551225,0.4927,3043.9,3042.3,0.58947529]
[1765811551423,0.405504,3043.8,3042.2,6.57418972]
[1765811551918,0.001,3042.9,3042.2,9.86128458]
[1765811552221,0.575,3042.8,3042.1,3.28719085]
[1765811552387,1.0,3042.7,3041.3,12.425849]
[1765811552598,1.0,3042.7,3041.4,0.58047529]
[1765811552797,1.0,3042.7,3041.5,0.009]
[1765811553430,1.0,3042.7,3041.5,0.58947529]
[1765811553583,0.4521,3042.6,3041.3,14.226695]
[1765811553929,0.01964926,3042.3,3041.2,13.15270288]
[1765811554079,0.405504,3042.4,3041.3,0.009]
[1765811554279,1.0,3042.7,3041.4,13.15183796]
[1765811554586,0.405504,3042.6,3041.5,0.58047529]
[1765811554992,0.857604,3042.6,3041.4,6.57591898]
[1765811555198,0.01964926,3042.0,3041.4,6.57591898]
[1765811555523,0.01964926,3042.4,3041.4,6.57591898]
[1765811555824,0.01964926,3042.4,3041.5,0.009]
[1765811556319,0.42515326,3042.6,3041.6,9.86322987]
[1765811556536,0.405504,3042.6,3041.6,9.86322987]
[1765811556823,0.01964926,3042.2,3041.6,3.28774329]
[1765811556981,0.405504,3042.1,3041.1,3.28819451]
[1765811557185,0.979504,3042.0,3040.8,3.28850502]
[1765811557434,0.979504,3042.0,3039.9,0.67527355]
[1765811557622,0.01964926,3040.9,3040.6,3.28874671]
[1765811557983,0.01964926,3040.9,3039.6,1.67765197]
[1765811558186,0.405504,3040.7,3039.2,0.009]
[1765811558412,0.405504,3040.7,3039.3,9.8706939]
[1765811558607,0.42515326,3040.9,3039.4,0.58047529]
[1765811558806,0.42515326,3040.9,3039.4,0.58947529]
[1765811559230,0.01964926,3040.9,3039.4,0.58947529]
[1765811559427,0.01964926,3040.5,3039.5,1.37504005]
[1765811559610,0.01964926,3040.3,3039.4,0.009]
[1765811559790,0.01964926,3040.3,3039.3,9.8706939]
[1765811560192,0.4521,3040.9,3039.4,0.009]
[1765811560411,0.979504,3040.8,3039.5,9.8700444]
[1765811560614,0.979504,3040.8,3039.6,0.58047529]
[1765811560815,0.01964926,3040.7,3039.6,1.96442874]
[1765811561015,0.01964926,3040.7,3039.6,0.58047529]
[1765811561383,0.574,3040.6,3039.6,0.58047529]
[1765811561617,0.574,3040.6,3039.7,0.009]
[1765811562023,0.01964926,3041.0,3039.7,0.009]
[1765811562323,0.59364926,3040.8,3039.7,0.009]
[1765811562500,0.01964926,3040.8,3039.8,9.86907033]
[1765811562699,0.405504,3040.9,3039.8,13.15876044]
[1765811562900,0.405504,3040.9,3039.9,0.009]
[1765811563102,0.42515326,3041.0,3039.9,0.009]
[1765811563433,0.01964926,3041.0,3039.9,0.009]
[1765811563590,0.01964926,3040.8,3039.9,0.009]
[1765811563789,0.01964926,3040.8,3039.8,6.57938022]
[1765811563790,0.01964926,3040.6,3039.8,6.57938022]
[1765811564207,0.01964926,3040.6,3039.8,3.28969011]
[1765811564608,0.405504,3040.5,3039.5,0.58047529]
[1765811564805,0.01964926,3040.6,3039.5,0.58947529]
[1765811565210,0.01964926,3040.8,3039.6,0.009]
[1765811565545,0.405504,3040.9,3039.8,0.58047529]
[1765811565829,0.405504,3040.9,3039.8,0.009]
[1765811566043,0.4521,3040.8,3039.4,0.58247529]
[1765811566212,0.405504,3040.7,3039.4,0.58247529]
[1765811566827,0.405504,3040.7,3039.4,0.002]
[1765811567029,0.01964926,3040.3,3039.4,0.002]
[1765811568001,0.405504,3040.2,3039.4,0.002]
[1765811568416,0.405504,3040.0,3039.4,0.002]
[1765811568821,0.405504,3039.9,3039.4,0.002]
[1765811569251,0.978504,3039.8,3039.4,0.002]
[1765811569747,0.21404926,3040.3,3039.4,0.002]
[1765811569917,0.1944,3040.6,3039.4,0.002]
[1765811570149,0.01964926,3040.3,3039.4,0.002]
[1765811570360,0.01964926,3040.5,3039.4,0.002]
[1765811570580,0.573,3040.4,3039.4,0.011]
[1765811570873,0.405504,3040.3,3039.5,6.5800296]
[1765811571045,0.01964926,3040.6,3039.5,10.85816406]
[1765811571246,0.01964926,3040.6,3039.6,0.58047529]
[1765811571852,0.42515326,3040.6,3039.6,0.58947529]
[1765811572052,0.405504,3040.6,3039.6,0.58947529]
[1765811572385,0.42515326,3040.6,3039.6,0.58947529]
[1765811572545,0.42515326,3040.6,3039.6,0.58047529]
[1765811573163,0.42515326,3040.6,3039.7,9.86939499]
[1765811573372,0.01964926,3040.6,3039.7,9.86939499]
[1765811573565,0.405504,3040.5,3039.7,9.86939499]
[1765811573877,0.405504,3040.5,3039.6,0.58047529]
[1765811573878,0.01964926,3040.2,3039.6,3.28986814]
[1765811574171,0.01964926,3040.2,3039.6,6.5797747]
[1765811575043,0.01884926,3040.2,3039.6,3.28986814]
[1765811575367,0.01884926,3040.2,3039.4,0.002]
[1765811575368,0.1944,3039.7,3039.4,0.002]
[1765811575570,0.405504,3039.6,3039.4,0.002]
[1765811575869,0.857604,3039.6,3039.4,0.002]
[1765811576046,0.01964926,3039.5,3039.4,0.002]
[1765811576472,0.01964926,3039.6,3039.4,0.002]
[1765811576771,0.01964926,3039.8,3039.4,0.002]
[1765811576949,0.405504,3039.6,3039.4,0.002]
[1765811577266,0.978504,3039.5,3039.4,0.002]
[1765811578663,1.430604,3039.5,3039.4,0.002]
[1765811579377,0.99815326,3039.5,3039.4,0.002]
[1765811579574,0.42515326,3039.5,3039.4,0.002]
[1765811579879,0.405504,3039.6,3039.4,0.002]
[1765811580178,0.42515326,3039.6,3039.4,0.002]
[1765811580376,0.572,3039.7,3039.4,0.002]
[1765811580576,0.58047529,3040.4,3039.4,0.002]
[1765811580872,0.405504,3039.8,3039.4,0.002]
[1765811581074,0.405504,3039.6,3039.4,0.002]
[1765811581376,0.01964926,3040.0,3039.4,0.002]
[1765811581705,0.61955326,3039.5,3039.4,0.002]
[1765811581885,0.01964926,3039.7,3039.4,0.002]
[1765811582090,0.99715326,3039.5,3039.4,0.002]
[1765811582558,0.405504,3039.5,3039.4,0.002]
[1765811582760,0.977504,3039.5,3039.4,0.002]
[1765811583087,0.01964926,3039.8,3039.4,0.002]
[1765811583088,0.4725,3039.8,3039.4,0.002]
[1765811583309,0.405504,3039.6,3039.4,0.002]
[1765811583581,0.405504,3039.4,3038.8,0.002]
[1765811583782,0.572,3039.3,3038.8,0.002]
[1765811583985,0.01964926,3038.9,3038.8,0.002]
[1765811584152,0.572,3038.9,3038.8,0.002]
[1765811584473,1.450004,3038.9,3038.8,0.002]
[1765811585401,4.74066838,3038.9,3038.8,0.002]
[1765811585711,5.54574799,3038.9,3038.8,0.002]
[1765811586021,0.405504,3038.9,3038.8,0.002]
[1765811586205,0.977504,3038.9,3038.8,0.002]
[1765811586718,0.405504,3039.0,3038.8,0.002]
[1765811586917,0.20654926,3039.9,3038.8,0.002]
[1765811587094,4.30856929,3040.6,3038.9,0.011]
[1765811587296,1.52260693,3040.5,3038.8,0.002]
[1765811587497,9.86712273,3040.4,3038.8,0.002]
[1765811587821,0.405504,3040.3,3038.8,0.002]
[1765811588036,0.01964926,3039.6,3038.8,0.002]
[1765811588189,0.01964926,3039.4,3038.8,0.002]
[1765811588388,0.01964926,3039.6,3038.8,0.002]
[1765811588640,1.01964926,3040.6,3039.0,6.58946706]
[1765811588834,1.01964926,3040.6,3039.6,0.58047529]
[1765811588835,1.0,3040.6,3039.6,0.58047529]
[1765811589008,1.0,3040.6,3039.5,0.572]
[1765811589292,1.0,3040.6,3039.1,0.011]
[1765811589293,0.01964926,3040.3,3039.1,0.011]
[1765811589485,0.01964926,3040.3,3039.2,9.87101868]
[1765811589486,0.59164926,3040.3,3039.2,9.87101868]
[1765811589811,0.572,3040.2,3039.2,10.91642055]
[1765811590012,0.572,3040.4,3039.3,0.59147529]
[1765811590312,1.0,3040.6,3039.3,0.59147529]
[1765811590512,1.0,3040.6,3039.4,0.011]
[1765811591317,1.0,3040.6,3039.3,0.58047529]
[1765811591318,0.01964926,3040.5,3039.3,0.58047529]
[1765811591513,0.01964926,3040.5,3039.5,0.58047529]
[1765811591514,0.42515326,3040.5,3039.5,0.58047529]
[1765811591715,1.0,3040.6,3039.6,0.571]
[1765811591920,1.0,3040.6,3039.6,0.582]
[1765811592095,0.405504,3040.5,3039.5,0.58047529]
[1765811592421,0.405504,3040.5,3039.6,0.011]
[1765811592621,0.405504,3040.5,3039.6,1.5340691]
[1765811592928,1.0,3040.6,3040.0,0.58047529]
[1765811593095,1.0,3040.6,3040.3,0.58047529]
[1765811593296,1.0,3040.6,3040.4,0.011]
[1765811593498,0.01964926,3042.4,3040.5,47.02513899]
[1765811593723,0.571,3042.4,3040.7,0.58047529]
[1765811593998,0.571,3042.4,3040.6,2.45339179]
[1765811593999,0.01964926,3042.0,3040.8,0.571]
[1765811594732,0.1869,3042.5,3040.9,0.032885]
[1765811594896,0.4725,3042.4,3040.6,0.571]
[1765811595095,0.98597929,3042.2,3040.5,3.28893274]
[1765811595295,0.58047529,3041.8,3039.6,1.5230691]
[1765811595533,5.39565729,3041.5,3039.0,6.58109784]
[1765811595831,0.98597929,3041.1,3039.0,9.87165394]
[1765811596131,0.98597929,3041.1,3039.4,0.002]
[1765811596303,0.405504,3040.9,3039.4,0.002]
[1765811596502,0.4725,3041.0,3039.4,0.002]
[1765811596503,0.405504,3040.7,3039.4,0.002]
[1765811597018,0.405504,3040.0,3038.8,0.002]
[1765811597220,0.405504,3039.0,3038.8,0.002]
[1765811597420,0.405504,3039.0,3038.8,0.03490772]
[1765811597421,0.571,3039.0,3038.8,0.03490772]
[1765811597734,0.571,3039.0,3038.9,3.29066438]
[1765811597937,0.571,3039.1,3038.9,3.29066438]
[1765811598147,0.6594,3040.1,3038.9,9.87199314]
[1765811598300,0.1869,3042.5,3039.8,6.89080691]
[1765811598301,0.1869,3041.2,3039.8,6.89080691]
[1765811598500,0.1869,3041.2,3039.9,0.58047529]
[1765811598827,0.01964926,3040.9,3040.0,0.74712822]
[1765811599030,0.01964926,3040.6,3039.5,0.571]
[1765811599230,0.01964926,3040.8,3039.5,0.571]
[1765811599436,0.01964926,3040.8,3039.7,0.58047529]
[1765811600171,0.42515326,3040.7,3039.7,0.58047529]
[1765811600333,0.01964926,3040.3,3039.6,6.57981312]